fUSD/lending_fUSD_20240420
["ID","MTS","AMOUNT","RATE_DAILY","PERIOD"]
[323094901,1713651045855,-377.91918553,0.00019178,2]
[323094902,1713651045864,-161.96536522,0.00019178,2]
[323094903,1713651045874,-2000.0,0.00019178,2]
[323094904,1713651045883,-320.19796154,0.00019178,2]
[323094905,1713651045893,-153.51544218,0.0001918,2]
[323094906,1713651045902,-574.15002303,0.00019183,2]
[323094907,1713651045912,-192.189945,0.00019196,2]
[323094908,1713651045921,-192.189945,0.00019196,2]
[323094909,1713651045930,-153.179289,0.00019196,2]
[323094910,1713651045940,-153.179289,0.00019196,2]
[323094911,1713651046003,-151.0,0.00019196,2]
[323094912,1713651046012,-151.0,0.00019196,2]
[323094913,1713651046021,-151.0,0.00019196,2]
[323094914,1713651046031,-151.0,0.00019196,2]
[323094915,1713651046040,-151.0,0.00019196,2]
[323094916,1713651046049,-163.51174,0.00019196,2]
[323094917,1713651046058,-163.51174,0.00019196,2]
[323094918,1713651046067,-153.35275824,0.00019212,2]
[323094919,1713651046077,-155.16475182,0.00019231,2]
[323094920,1713651046086,-262.565758,0.0001924,2]
[323094921,1713651046095,-154.98944833,0.00019265,2]
[323094922,1713651046104,-216.13390304,0.00019271,2]
[323094923,1713651046113,-166.66666666,0.00019278,2]
[323094924,1713651046123,-712.0,0.00019284,2]
[323094925,1713651046133,-153.42538043,0.00019291,2]
[323094926,1713651046142,-1000.0,0.00019314,2]
[323094928,1713651046151,-577.1500482,0.00019322,2]
[323094929,1713651046160,-151.0,0.00019333,2]
[323094930,1713651046169,-151.0,0.00019333,2]
[323094931,1713651046178,-151.0,0.00019333,2]
[323094932,1713651046186,-1700.0,0.00019375,2]
[323094933,1713651046196,-250.35374781,0.00019376,7]
[323094934,1713651046205,-166.66666666,0.0001938,2]
[323094935,1713651046214,-2667.24,0.00019389,2]
[323094936,1713651046225,-1001.87,0.00019389,2]
[323094937,1713651046234,-3837.0,0.00019389,2]
[323094938,1713651046243,-3428.88,0.00019389,2]
[323094939,1713651046252,-151.0,0.00019409,2]
[323094940,1713651046261,-151.0,0.00019409,2]
[323094941,1713651046270,-329.967161,0.00019409,2]
[323094942,1713651046279,-329.967161,0.00019409,2]
[323094943,1713651046288,-664.005963,0.00019409,2]
[323094944,1713651046297,-181.184666,0.00019409,2]
[323094945,1713651046306,-664.005963,0.00019409,2]
[323094946,1713651046315,-181.184666,0.00019409,2]
[323094947,1713651046324,-151.0,0.00019409,2]
[323094948,1713651046333,-430.6083993,0.00019421,2]
[323094949,1713651046344,-574.15002303,0.00019426,2]
[323094950,1713651046352,-167.551591,0.00019451,2]
[323094951,1713651046361,-151.0,0.00019451,2]
[323094952,1713651046371,-151.0,0.00019451,2]
[323094953,1713651046380,-255.462152,0.00019451,2]
[323094954,1713651046389,-255.462152,0.00019451,2]
[323094955,1713651046398,-238.794602,0.00019451,2]
[323094956,1713651046407,-238.794602,0.00019451,2]
[323094957,1713651046416,-541.863352,0.00019451,2]
[323094958,1713651046426,-541.863352,0.00019451,2]
[323094959,1713651046435,-191.970236,0.00019451,2]
[323094960,1713651046444,-191.970236,0.00019451,2]
[323094961,1713651046453,-715.910514,0.00019451,2]
[323094962,1713651046464,-151.0,0.00019451,2]
[323094963,1713651046475,-715.910514,0.00019451,2]
[323094964,1713651046484,-380.422175,0.00019451,2]
[323094965,1713651046493,-151.0,0.00019451,2]
[323094966,1713651046502,-380.422175,0.00019451,2]
[323094967,1713651046513,-151.0,0.00019451,2]
[323094968,1713651046522,-730.741689,0.00019451,2]
[323094969,1713651046531,-151.0,0.00019451,2]
[323094970,1713651046540,-730.741689,0.00019451,2]
[323094971,1713651046550,-151.0,0.00019451,2]
[323094972,1713651046559,-278.659762,0.00019451,2]
[323094973,1713651046568,-278.659762,0.00019451,2]
[323094974,1713651046577,-187.654272,0.00019451,2]
[323094975,1713651046586,-187.654272,0.00019451,2]
[323094976,1713651046595,-151.14144813,0.00019456,2]
[323094977,1713651046604,-154.87321003,0.00019468,2]
[323094978,1713651046613,-182.34721816,0.00019469,2]
[323094979,1713651046622,-155.16475182,0.00019472,2]
[323094980,1713651046632,-430.6083993,0.00019484,2]
[323094981,1713651046641,-150.19727466,0.00019496,2]
[323094982,1713651046650,-1534.24,0.00019497,2]
[323094983,1713651046659,-1000.0,0.000195,2]
[323094984,1713651046668,-151.0,0.00019509,2]
[323094985,1713651046677,-151.0,0.00019509,2]
[323094986,1713651046686,-151.0,0.00019509,2]
[323094987,1713651046695,-162.308791,0.00019509,2]
[323094988,1713651046704,-1163.985691,0.00019509,2]
[323094989,1713651046713,-162.308791,0.00019509,2]
[323094990,1713651046726,-1163.985691,0.00019509,2]
[323094991,1713651046735,-449.258452,0.00019509,2]
[323094992,1713651046745,-151.0,0.00019509,2]
[323094993,1713651046754,-449.258452,0.00019509,2]
[323094994,1713651046763,-151.0,0.00019509,2]
[323094995,1713651046773,-206.077667,0.00019509,2]
[323094996,1713651046782,-151.0,0.00019509,2]
[323094997,1713651046791,-151.0,0.00019509,2]
[323094998,1713651046800,-189.564626,0.00019509,2]
[323094999,1713651046810,-267.648347,0.00019509,2]
[323095000,1713651046819,-267.648347,0.00019509,2]
[323095001,1713651046828,-151.0,0.00019509,2]
[323095002,1713651046837,-151.0,0.00019509,2]
[323095003,1713651046846,-238.960735,0.00019509,2]
[323095004,1713651046856,-151.0,0.00019509,2]
[323095005,1713651046865,-238.960735,0.00019509,2]
[323095006,1713651046874,-151.0,0.00019509,2]
[323095007,1713651046883,-288.0,0.00019509,2]
[323095008,1713651046893,-153.35275824,0.00019514,2]
[323095009,1713651046902,-155.16475182,0.00019555,2]
[323095010,1713651046911,-155.16475182,0.00019557,2]
[323095011,1713651046921,-626.56851657,0.00019605,2]
[323095012,1713651046930,-2150.58565061,0.00019619,2]
[323095013,1713651046939,-626.56851657,0.0001962,2]
[323095014,1713651046949,-164.30215291,0.0001962,2]
[323095015,1713651046958,-349.8,0.0001962,2]
[323095016,1713651046969,-2150.58565061,0.00019627,2]
[323095017,1713651046978,-151.0,0.00019633,2]
[323095018,1713651046987,-396.752378,0.00019633,2]
[323095019,1713651046996,-454.780278,0.00019633,2]
[323095020,1713651047005,-396.752378,0.00019633,2]
[323095021,1713651047015,-454.780278,0.00019633,2]
[323095022,1713651047024,-864.727241,0.00019633,2]
[323095023,1713651047033,-864.727241,0.00019633,2]
[323095024,1713651047042,-151.0,0.00019633,2]
[323095025,1713651047051,-152.356357,0.00019633,2]
[323095026,1713651047060,-151.0,0.00019633,2]
[323095027,1713651047069,-151.0,0.00019633,2]
[323095028,1713651047078,-152.356357,0.00019633,2]
[323095029,1713651047086,-151.0,0.00019633,2]
[323095030,1713651047096,-13251.65207594,0.00019633,2]
[323095031,1713651047105,-577.1500482,0.00019636,2]
[323095032,1713651047114,-154.87321003,0.00019638,2]
[323095033,1713651047123,-2667.24,0.00019663,2]
[323095034,1713651047132,-1001.87,0.00019663,2]
[323095035,1713651047141,-3837.0,0.00019663,2]
[323095036,1713651047150,-3428.88,0.00019663,2]
[323095037,1713651047159,-1000.0,0.00019667,2]
[323095038,1713651047168,-151.58369729,0.0001968,2]
[323095039,1713651047178,-1000.0,0.000197,2]
[323095040,1713651047187,-156.74680898,0.00019711,2]
[323095041,1713651047196,-1000.0,0.00019726,2]
[323095042,1713651047205,-151.58369729,0.00019732,2]
[323095043,1713651047214,-151.0,0.00019733,2]
[323095044,1713651047225,-151.0,0.00019733,2]
[323095045,1713651047235,-151.0,0.00019733,2]
[323095046,1713651047244,-314.84296,0.00019733,2]
[323095047,1713651047254,-314.84296,0.00019733,2]
[323095048,1713651047264,-317.116297,0.00019733,2]
[323095049,1713651047274,-317.116297,0.00019733,2]
[323095050,1713651047284,-857.37267,0.00019733,2]
[323095051,1713651047294,-857.37267,0.00019733,2]
[323095052,1713651047303,-150.0,0.00019754,2]
[323095053,1713651047313,-2294.0,0.00019754,2]
[323095054,1713651047323,-969.0,0.00019754,2]
[323095055,1713651047333,-1393.0,0.00019754,2]
[323095056,1713651047343,-461.0,0.00019754,2]
[323095057,1713651047353,-541.0,0.00019754,2]
[323095058,1713651047363,-1255.0,0.00019754,2]
[323095059,1713651047373,-1228.0,0.00019754,2]
[323095060,1713651047383,-257.0,0.00019754,2]
[323095061,1713651047392,-436.0,0.00019754,2]
[323095062,1713651047402,-609.0,0.00019754,2]
[323095063,1713651047411,-1857.0,0.00019754,2]
[323095064,1713651047421,-807.0,0.00019754,2]
[323095065,1713651047430,-1474.0,0.00019754,2]
[323095066,1713651047440,-2974.799,0.00019754,2]
[323095067,1713651047451,-2444.0,0.00019754,2]
[323095068,1713651047461,-399.0,0.00019754,2]
[323095069,1713651047478,-150.0,0.00019754,2]
[323095070,1713651047488,-214.0,0.00019754,2]
[323095071,1713651047499,-1640.0,0.00019754,2]
[323095072,1713651047509,-1140.0,0.00019754,2]
[323095073,1713651047519,-443.0,0.00019754,2]
[323095074,1713651047529,-195.0,0.00019754,2]
[323095075,1713651047539,-2704.0,0.00019754,2]
[323095076,1713651047550,-24113.995,0.00019754,2]
[323095077,1713651047561,-5891.0,0.00019754,2]
[323095078,1713651047571,-5727.0,0.00019754,2]
[323095079,1713651047581,-1055.0,0.00019754,2]
[323095080,1713651047591,-151.0,0.00019754,2]
[323095081,1713651047601,-179.306107,0.00019754,2]
[323095082,1713651047611,-151.0,0.00019754,2]
[323095083,1713651047621,-275.684519,0.00019754,2]
[323095084,1713651047630,-275.684519,0.00019754,2]
[323095085,1713651047641,-192.189945,0.00019754,2]
[323095086,1713651047651,-192.189945,0.00019754,2]
[323095087,1713651047661,-153.179289,0.00019754,2]
[323095088,1713651047671,-153.179289,0.00019754,2]
[323095089,1713651047681,-151.0,0.00019754,2]
[323095090,1713651047691,-160.217502,0.00019754,2]
[323095091,1713651047701,-151.0,0.00019754,2]
[323095092,1713651047712,-151.0,0.00019754,2]
[323095093,1713651047723,-151.0,0.00019754,2]
[323095094,1713651047734,-163.51174,0.00019754,2]
[323095095,1713651047744,-163.51174,0.00019754,2]
[323095096,1713651047754,-151.0,0.00019754,2]
[323095097,1713651047765,-162.308791,0.00019754,2]
[323095098,1713651047775,-1163.985691,0.00019754,2]
[323095099,1713651047786,-162.308791,0.00019754,2]
[323095100,1713651047797,-1163.985691,0.00019754,2]
[323095101,1713651047809,-449.258452,0.00019754,2]
[323095102,1713651047819,-151.0,0.00019754,2]
[323095103,1713651047830,-449.258452,0.00019754,2]
[323095104,1713651047840,-151.0,0.00019754,2]
[323095105,1713651047852,-715.910514,0.00019754,2]
[323095106,1713651047862,-151.0,0.00019754,2]
[323095107,1713651047873,-715.910514,0.00019754,2]
[323095108,1713651047883,-380.422175,0.00019754,2]
[323095109,1713651047893,-151.0,0.00019754,2]
[323095110,1713651047906,-380.422175,0.00019754,2]
[323095111,1713651047917,-151.0,0.00019754,2]
[323095112,1713651047927,-730.741689,0.00019754,2]
[323095113,1713651047936,-151.0,0.00019754,2]
[323095114,1713651047948,-730.741689,0.00019754,2]
[323095115,1713651047958,-295.973632,0.00019754,2]
[323095116,1713651047969,-278.659762,0.00019754,2]
[323095117,1713651047979,-151.0,0.00019754,2]
[323095118,1713651047989,-278.659762,0.00019754,2]
[323095119,1713651048000,-187.654272,0.00019754,2]
[323095120,1713651048011,-187.654272,0.00019754,2]
[323095121,1713651048020,-151.0,0.00019754,2]
[323095122,1713651048032,-151.0,0.00019754,2]
[323095123,1713651048043,-329.967161,0.00019754,2]
[323095124,1713651048054,-329.967161,0.00019754,2]
[323095125,1713651048064,-664.005963,0.00019754,2]
[323095126,1713651048076,-181.184666,0.00019754,2]
[323095127,1713651048087,-664.005963,0.00019754,2]
[323095128,1713651048099,-181.184666,0.00019754,2]
[323095129,1713651048109,-151.0,0.00019754,2]
[323095130,1713651048119,-151.0,0.00019754,2]
[323095131,1713651048130,-151.0,0.00019754,2]
[323095132,1713651048140,-151.0,0.00019754,2]
[323095133,1713651048149,-1925.930516,0.00019754,2]
[323095134,1713651048159,-1925.930516,0.00019754,2]
[323095135,1713651048169,-5346.409224,0.00019754,2]
[323095136,1713651048179,-5346.409224,0.00019754,2]
[323095137,1713651048190,-234.545228,0.00019754,2]
[323095138,1713651048201,-234.545228,0.00019754,2]
[323095139,1713651048212,-151.0,0.00019754,2]
[323095140,1713651048223,-151.0,0.00019754,2]
[323095141,1713651048232,-156.20571,0.00019754,2]
[323095142,1713651048242,-151.0,0.00019754,2]
[323095143,1713651048252,-151.0,0.00019754,2]
[323095144,1713651048262,-151.0,0.00019754,2]
[323095145,1713651048273,-161.984218,0.00019754,2]
[323095146,1713651048283,-151.0,0.00019767,2]
[323095147,1713651048293,-151.0,0.00019767,2]
[323095148,1713651048303,-1902.22,0.000198,2]
[323095149,1713651048313,-151.0,0.00019831,2]
[323095150,1713651048323,-153.320884,0.00019831,2]
[323095151,1713651048333,-255.462152,0.00019831,2]
[323095152,1713651048343,-255.462152,0.00019831,2]
[323095153,1713651048353,-238.794602,0.00019831,2]
[323095154,1713651048363,-238.794602,0.00019831,2]
[323095155,1713651048376,-541.863352,0.00019831,2]
[323095156,1713651048390,-541.863352,0.00019831,2]
[323095157,1713651048403,-151.0,0.00019831,2]
[323095158,1713651048416,-152.356357,0.00019831,2]
[323095159,1713651048428,-151.0,0.00019831,2]
[323095160,1713651048437,-191.970236,0.00019831,2]
[323095161,1713651048449,-152.356357,0.00019831,2]
[323095162,1713651048462,-191.970236,0.00019831,2]
[323095163,1713651048476,-151.0,0.00019831,2]
[323095164,1713651048487,-151.0,0.00019831,2]
[323095165,1713651048500,-151.0,0.00019831,2]
[323095166,1713651048511,-267.648347,0.00019831,2]
[323095167,1713651048522,-267.648347,0.00019831,2]
[323095168,1713651048533,-151.0,0.00019831,2]
[323095169,1713651048545,-243.015265,0.00019831,2]
[323095170,1713651048556,-238.960735,0.00019831,2]
[323095171,1713651048568,-151.0,0.00019831,2]
[323095172,1713651048579,-238.960735,0.00019831,2]
[323095173,1713651048591,-234.466036,0.00019831,2]
[323095174,1713651048601,-1000.0,0.00019839,2]
[323095175,1713651048611,-500.0,0.00019839,2]
[323095176,1713651048621,-151.58369729,0.00019856,2]
[323095177,1713651048633,-166.66666667,0.00019861,2]
[323095178,1713651048646,-156.12497097,0.00019872,2]
[323095179,1713651048657,-154.87321003,0.00019877,2]
[323095180,1713651048668,-154.87321003,0.00019889,2]
[323095181,1713651048679,-574.15002303,0.00019895,2]
[323095182,1713651048689,-151688.17152985,0.000199,4]
[323095183,1713651048701,-151.0,0.000199,2]
[323095184,1713651048711,-151.0,0.000199,2]
[323095185,1713651048724,-151.0,0.000199,2]
[323095186,1713651048735,-151.0,0.000199,2]
[323095187,1713651048746,-275.684519,0.000199,2]
[323095188,1713651048756,-275.684519,0.000199,2]
[323095189,1713651048766,-192.189945,0.000199,2]
[323095190,1713651048776,-192.189945,0.000199,2]
[323095191,1713651048789,-153.179289,0.000199,2]
[323095192,1713651048801,-153.179289,0.000199,2]
[323095193,1713651048811,-151.0,0.000199,2]
[323095194,1713651048822,-151.0,0.000199,2]
[323095195,1713651048835,-151.0,0.000199,2]
[323095196,1713651048846,-163.51174,0.000199,2]
[323095197,1713651048856,-163.51174,0.000199,2]
[323095198,1713651048867,-265.286604,0.000199,2]
[323095199,1713651048878,-396.752378,0.000199,2]
[323095200,1713651048890,-454.780278,0.000199,2]
[323095201,1713651048899,-396.752378,0.000199,2]
[323095202,1713651048911,-454.780278,0.000199,2]
[323095203,1713651048922,-151.0,0.000199,2]
[323095204,1713651048933,-864.727241,0.000199,2]
[323095205,1713651048944,-864.727241,0.000199,2]
[323095206,1713651048955,-151.0,0.000199,2]
[323095207,1713651048967,-151.0,0.000199,2]
[323095208,1713651048978,-314.84296,0.000199,2]
[323095209,1713651048990,-314.84296,0.000199,2]
[323095210,1713651049002,-317.116297,0.000199,2]
[323095211,1713651049014,-317.116297,0.000199,2]
[323095212,1713651049025,-857.37267,0.000199,2]
[323095213,1713651049036,-857.37267,0.000199,2]
[323095214,1713651049046,-151.0,0.000199,2]
[323095215,1713651049056,-255.462152,0.000199,2]
[323095216,1713651049065,-255.462152,0.000199,2]
[323095217,1713651049075,-238.794602,0.000199,2]
[323095218,1713651049085,-238.794602,0.000199,2]
[323095219,1713651049096,-541.863352,0.000199,2]
[323095220,1713651049107,-541.863352,0.000199,2]
[323095221,1713651049118,-151.0,0.000199,2]
[323095222,1713651049128,-152.356357,0.000199,2]
[323095223,1713651049139,-151.0,0.000199,2]
[323095224,1713651049149,-191.970236,0.000199,2]
[323095225,1713651049160,-152.356357,0.000199,2]
[323095226,1713651049172,-191.970236,0.000199,2]
[323095227,1713651049182,-151.0,0.000199,2]
[323095228,1713651049193,-151.0,0.000199,2]
[323095229,1713651049203,-162.308791,0.000199,2]
[323095230,1713651049213,-1163.985691,0.000199,2]
[323095231,1713651049224,-162.308791,0.000199,2]
[323095232,1713651049233,-1163.985691,0.000199,2]
[323095233,1713651049243,-449.258452,0.000199,2]
[323095234,1713651049254,-151.0,0.000199,2]
[323095235,1713651049264,-449.258452,0.000199,2]
[323095236,1713651049274,-151.0,0.000199,2]
[323095237,1713651049284,-151.0,0.000199,2]
[323095238,1713651049295,-151.0,0.000199,2]
[323095239,1713651049306,-267.648347,0.000199,2]
[323095240,1713651049316,-267.648347,0.000199,2]
[323095241,1713651049327,-151.0,0.000199,2]
[323095242,1713651049337,-238.960735,0.000199,2]
[323095243,1713651049347,-151.0,0.000199,2]
[323095244,1713651049358,-238.960735,0.000199,2]
[323095245,1713651049369,-715.910514,0.000199,2]
[323095246,1713651049379,-151.0,0.000199,2]
[323095247,1713651049390,-715.910514,0.000199,2]
[323095248,1713651049399,-380.422175,0.000199,2]
[323095249,1713651049410,-151.0,0.000199,2]
[323095250,1713651049420,-380.422175,0.000199,2]
[323095251,1713651049430,-151.0,0.000199,2]
[323095252,1713651049441,-730.741689,0.000199,2]
[323095253,1713651049451,-151.0,0.000199,2]
[323095254,1713651049461,-730.741689,0.000199,2]
[323095255,1713651049475,-278.659762,0.000199,2]
[323095256,1713651049485,-151.0,0.000199,2]
[323095257,1713651049496,-278.659762,0.000199,2]
[323095258,1713651049506,-187.654272,0.000199,2]
[323095259,1713651049518,-187.654272,0.000199,2]
[323095260,1713651049528,-151.0,0.000199,2]
[323095261,1713651049539,-151.0,0.000199,2]
[323095262,1713651049550,-329.967161,0.000199,2]
[323095263,1713651049561,-329.967161,0.000199,2]
[323095264,1713651049571,-664.005963,0.000199,2]
[323095265,1713651049582,-181.184666,0.000199,2]
[323095266,1713651049592,-664.005963,0.000199,2]
[323095267,1713651049603,-181.184666,0.000199,2]
[323095268,1713651049614,-151.0,0.000199,2]
[323095269,1713651049624,-151.0,0.000199,2]
[323095270,1713651049635,-151.0,0.000199,2]
[323095271,1713651049645,-151.0,0.000199,2]
[323095272,1713651049656,-1925.930516,0.000199,2]
[323095273,1713651049666,-1925.930516,0.000199,2]
[323095274,1713651049676,-5346.409224,0.000199,2]
[323095275,1713651049687,-5346.409224,0.000199,2]
[323095276,1713651049698,-234.545228,0.000199,2]
[323095277,1713651049708,-234.545228,0.000199,2]
[323095278,1713651049719,-151.0,0.000199,2]
[323095279,1713651049730,-151.0,0.000199,2]
[323095280,1713651049740,-500.0,0.000199,2]
[323095281,1713651049751,-500.0,0.000199,2]
[323095282,1713651049761,-500.0,0.000199,2]
[323095283,1713651049773,-500.0,0.000199,2]
[323095284,1713651049784,-502.7913,0.000199,2]
[323095285,1713651049795,-151.0,0.000199,2]
[323095286,1713651049806,-151.0,0.000199,2]
[323095287,1713651049818,-151.0,0.000199,2]
[323095288,1713651049830,-154.87321003,0.00019903,2]
[323095289,1713651049841,-1700.0,0.00019923,2]
[323095290,1713651049852,-2667.24,0.00019937,2]
[323095291,1713651049863,-1001.87,0.00019937,2]
[323095292,1713651049873,-152.67516414,0.00019937,2]
[323095293,1713651050160,-3684.32483586,0.00019937,2]
[323095294,1713651050172,-3428.88,0.00019937,2]
[323095295,1713651050182,-626.56851657,0.0001997,2]
[323095296,1713651050193,-211.89783751,0.0002,2]
[323095297,1713651050203,-1766.39515948,0.0002,2]
[323095298,1713651050213,-859.71163069,0.0002,2]
[323095299,1713651050225,-9472.94788927,0.0002,2]
[323095300,1713651050238,-10729.82266905,0.0002,2]
[323095301,1713651050247,-3067.70286643,0.0002,2]
[323095302,1713651050257,-641.50946989,0.0002,2]
[323095303,1713651050267,-1257.22395038,0.0002,2]
[323095304,1713651050277,-155.0,0.0002,2]
[323095305,1713651050288,-155.0,0.0002,2]
[323095306,1713651050298,-6221.44447625,0.0002,2]
[323095307,1713651050308,-186.14079754,0.0002,2]
[323095308,1713651050319,-1400.0,0.0002,2]
[323095309,1713651050329,-9152.56490043,0.0002,2]
[323095310,1713651050340,-2000.0,0.0002,2]
[323095311,1713651050352,-543.57,0.0002,2]
[323095312,1713651050362,-151.0,0.0002,2]
[323095313,1713651050373,-152.356357,0.0002,2]
[323095314,1713651050383,-151.0,0.0002,2]
[323095315,1713651050394,-152.356357,0.0002,2]
[323095316,1713651050404,-151.0,0.0002,2]
[323095317,1713651050415,-152.004978,0.0002,2]
[323095318,1713651050425,-162.308791,0.0002,2]
[323095319,1713651050436,-1163.985691,0.0002,2]
[323095320,1713651050446,-162.308791,0.0002,2]
[323095321,1713651050461,-908.29696503,0.0002,2]
[323095322,1713651050571,-151.0,0.00017745,2]
[323095323,1713651050581,-103.41955986,0.00017745,2]
[323095324,1713651051020,-170.37924012,0.00017371,2]
[323095325,1713651051029,-231.85591414,0.00017745,2]
[323095326,1713651051040,-151.0,0.0001788,2]
[323095327,1713651051049,-335.275474,0.0001788,2]
[323095328,1713651051060,-151.0,0.00019115,2]
[323095329,1713651051069,-10.18937474,0.00019115,2]
[323095330,1713651051080,-325.08609926,0.00019115,2]
[323095331,1713651051090,-125.09390274,0.00019754,2]
[323095332,1713651051124,-0.00139364,0.00019754,2]
[323095333,1713651051335,-155.15436508,0.00015552,2]
[323095334,1713651051345,-974.54937898,0.00015552,2]
[323095335,1713651051357,-1279.05316706,0.00015552,2]
[323095336,1713651051366,-335.275474,0.00017745,2]
[323095337,1713651051376,-335.275474,0.0001788,2]
[323095338,1713651051385,-335.275474,0.00019115,2]
[323095339,1713651051394,-25.90470362,0.00019754,2]
[323095340,1713651051404,-335.275474,0.00019754,2]
[323095341,1713651051412,-335.275474,0.00019754,2]
[323095342,1713651051421,-335.275474,0.000199,2]
[323095343,1713651051431,-151.0,0.000199,2]
[323095344,1713651051440,-335.275474,0.000199,2]
[323095345,1713651051450,-255.68872597,0.0002,2]
[323095346,1713651051459,-449.258452,0.0002,2]
[323095347,1713651051472,-151.0,0.0002,2]
[323095348,1713651051481,-449.258452,0.0002,2]
[323095349,1713651051491,-151.0,0.0002,2]
[323095350,1713651051500,-354.0,0.0002,2]
[323095351,1713651051510,-702.0,0.0002,2]
[323095352,1713651051519,-1628.0,0.0002,2]
[323095353,1713651051529,-150.0,0.0002,2]
[323095354,1713651051538,-675.0,0.0002,2]
[323095355,1713651051549,-188.0,0.0002,2]
[323095356,1713651051558,-1500.0,0.0002,2]
[323095357,1713651051568,-7234.8,0.0002,2]
[323095358,1713651051577,-1781.3635006,0.00020005,2]
[323095359,1713651051586,-25030.43584017,0.00020019,2]
[323095360,1713651051601,-2369.13013473,0.00020019,2]
[323095361,1713651051611,-715.910514,0.00020019,2]
[323095362,1713651051621,-151.0,0.00020019,2]
[323095363,1713651051631,-715.910514,0.00020019,2]
[323095364,1713651051641,-380.422175,0.00020019,2]
[323095365,1713651051651,-380.422175,0.00020019,2]
[323095366,1713651051660,-258.320588,0.00020019,2]
[323095367,1713651051670,-730.741689,0.00020019,2]
[323095368,1713651051679,-151.0,0.00020019,2]
[323095369,1713651051689,-730.741689,0.00020019,2]
[323095370,1713651051698,-278.659762,0.00020019,2]
[323095371,1713651051708,-151.0,0.00020019,2]
[323095372,1713651051717,-278.659762,0.00020019,2]
[323095373,1713651051729,-187.654272,0.00020019,2]
[323095374,1713651051739,-187.654272,0.00020019,2]
[323095375,1713651051750,-151.0,0.00020019,2]
[323095376,1713651051759,-151.0,0.00020019,2]
[323095377,1713651051769,-329.967161,0.00020019,2]
[323095378,1713651051779,-329.967161,0.00020019,2]
[323095379,1713651051789,-664.005963,0.00020019,2]
[323095380,1713651051798,-181.184666,0.00020019,2]
[323095381,1713651051808,-664.005963,0.00020019,2]
[323095382,1713651051817,-181.184666,0.00020019,2]
[323095383,1713651051827,-151.0,0.00020019,2]
[323095384,1713651051837,-151.0,0.00020019,2]
[323095385,1713651051847,-151.0,0.00020019,2]
[323095386,1713651051857,-151.0,0.00020019,2]
[323095387,1713651051866,-1925.930516,0.00020019,2]
[323095388,1713651051875,-1925.930516,0.00020019,2]
[323095389,1713651051884,-5346.409224,0.00020019,2]
[323095390,1713651051894,-5346.409224,0.00020019,2]
[323095391,1713651051903,-234.545228,0.00020019,2]
[323095392,1713651051913,-234.545228,0.00020019,2]
[323095393,1713651051923,-151.0,0.00020019,2]
[323095394,1713651051932,-151.0,0.00020019,2]
[323095395,1713651051942,-151.0,0.00020019,2]
[323095396,1713651051952,-151.0,0.00020019,2]
[323095397,1713651051962,-151.0,0.00020019,2]
[323095398,1713651051973,-335.275474,0.00020019,2]
[323095399,1713651051983,-285.132494,0.00020019,2]
[323095400,1713651051992,-335.275474,0.00020019,2]
[323095401,1713651052002,-157.730358,0.00020041,2]